bitfinex/quotes_ETHUSD_20250814
["timestamp","ask_amount","ask_price","bid_price","bid_amount"]
[1755189451146,3.824,4549.8,4549.7,2.19794711]
[1755189451820,3.824,4549.8,4548.3,0.03]
[1755189451821,0.55,4548.5,4548.3,0.03]
[1755189452020,0.002,4550.5,4545.3,0.5296]
[1755189452021,3.55,4548.3,4545.3,0.5296]
[1755189452221,3.55,4548.3,4546.4,2.19950462]
[1755189452222,2.19905754,4547.5,4546.4,2.19950462]
[1755189452421,1.0204,4547.4,4545.4,3.0]
[1755189452661,1.0204,4547.4,4546.3,2.19954297]
[1755189452888,1.0204,4547.4,4546.2,2.19959712]
[1755189452889,0.55,4547.1,4546.2,2.19959712]
[1755189453040,0.55,4546.9,4546.0,2.19972947]
[1755189453234,0.55,4546.7,4546.0,2.19973574]
[1755189453588,0.19809529,4546.6,4546.0,2.19973574]
[1755189453873,0.19809529,4546.6,4545.7,2.19986447]
[1755189453874,0.19809529,4546.5,4545.8,2.19979093]
[1755189454045,1.21849529,4546.4,4545.0,0.001]
[1755189454247,0.55,4546.2,4545.4,2.2000044]
[1755189454447,0.19809529,4546.1,4545.0,0.001]
[1755189454653,4.02009529,4546.0,4545.4,2.19999474]
[1755189454854,0.19809529,4545.9,4545.5,2.19997795]
[1755189455057,0.19809529,4545.9,4545.1,3.0]
[1755189455058,0.4704,4545.9,4545.1,3.0]
[1755189455361,0.4704,4545.9,4545.4,2.20001991]
[1755189455565,0.66864406,4545.8,4545.3,2.2000713]
[1755189455778,0.19824406,4545.7,4545.2,2.20007765]
[1755189456078,1.23884406,4545.6,4545.0,2.2012141]
[1755189456280,0.55,4545.4,4545.0,0.001]
[1755189456444,1.23884406,4545.3,4545.0,0.001]
[1755189456635,1.23884406,4545.2,4545.0,0.001]
[1755189456838,4.49064406,4545.1,4545.0,0.001]
[1755189457640,6.69081567,4545.1,4545.0,0.001]
[1755189458182,7.81101567,4545.1,4545.0,0.001]
[1755189459745,7.92141567,4545.1,4545.0,0.001]
[1755189460452,10.92141567,4545.1,4545.0,0.001]
[1755189462044,10.92141567,4545.1,4545.0,1e-08]
[1755189462240,10.87081426,4545.1,4545.0,1e-08]
[1755189464282,10.8694913,4545.1,4545.0,1e-08]
[1755189464982,7.09809271,4545.1,4545.0,1e-08]
[1755189465153,10.91809271,4545.1,4545.0,1e-08]
[1755189467079,10.91809271,4545.1,4544.5,0.001]
[1755189467080,5.75041367,4544.6,4544.5,1e-08]
[1755189467284,7.09833477,4544.6,4544.5,1e-08]
[1755189467474,10.91733477,4544.6,4544.5,1e-08]
[1755189467801,11.0838562,4544.6,4544.5,1e-08]
[1755189468166,11.0848562,4544.6,4544.5,1e-08]
[1755189468566,7.09833477,4544.6,4544.5,1e-08]
[1755189468771,5.78121367,4544.6,4544.5,1e-08]
[1755189469079,10.39836929,4544.6,4544.5,1e-08]
[1755189469283,6.57936929,4544.6,4544.5,1e-08]
[1755189469483,10.39836929,4544.6,4544.5,1e-08]
[1755189469681,6.57936929,4544.6,4544.5,1e-08]
[1755189469989,10.39736929,4544.6,4544.5,1e-08]
[1755189470194,7.12936929,4544.6,4544.5,1e-08]
[1755189470396,10.94736929,4544.6,4544.5,1e-08]
[1755189470807,11.51756929,4544.6,4544.5,1e-08]
[1755189471025,13.83256929,4544.6,4544.5,1e-08]
[1755189471483,9.44436929,4544.6,4544.5,1e-08]
[1755189471678,10.94736929,4544.6,4544.5,1e-08]
[1755189472406,3.90855562,4544.6,4544.5,1e-08]
[1755189472578,9.12781367,4544.6,4544.5,1e-08]
[1755189472779,6.9274,4544.6,4544.5,1e-08]
[1755189472980,9.67781367,4544.6,4544.5,1e-08]
[1755189473892,0.1104,4544.6,4544.5,1e-08]
[1755189474083,3.9274,4544.6,4544.5,0.56380001]
[1755189474284,4.4774,4544.6,4544.5,0.56380001]
[1755189474485,4.4774,4544.6,4544.5,1e-08]
[1755189475990,0.6604,4544.6,4544.5,1e-08]
[1755189476507,4.4764,4544.6,4544.5,1e-08]
[1755189476709,6.67681367,4544.6,4544.5,1e-08]
[1755189477474,0.6604,4544.6,4544.5,1e-08]
[1755189477671,3.9254,4544.6,4544.5,3.0622621]
[1755189478677,3.9244,4544.6,4544.5,3.0622621]
[1755189479028,0.002,4545.0,4544.9,2.20026843]
[1755189479185,0.1104,4544.9,4544.8,2.20030668]
[1755189479524,0.1104,4544.9,4544.5,3.02470619]
[1755189479525,3.816,4545.0,4544.5,1e-08]
[1755189479680,0.1104,4544.6,4544.5,1e-08]
[1755189479877,3.9244,4544.6,4544.5,1e-08]
[1755189480133,4.4744,4544.6,4544.5,1e-08]
[1755189480333,7.34229448,4544.6,4544.5,1e-08]
[1755189480641,5.14088081,4544.6,4544.5,1e-08]
[1755189480848,0.1104,4544.6,4544.5,2.2004621]
[1755189481004,3.9234,4544.6,4544.5,0.56380001]
[1755189481200,3.9234,4544.6,4544.5,1e-08]
[1755189481833,6.67381367,4544.6,4544.5,1e-08]
[1755189482200,4.4734,4544.6,4544.5,1e-08]
[1755189483323,3.9224,4544.6,4544.5,1e-08]
[1755189484546,0.1104,4544.6,4544.5,1e-08]
[1755189484746,0.1104,4544.6,4544.5,2.7642621]
[1755189484922,0.002,4545.0,4544.5,2.7642621]
[1755189484923,0.002,4545.0,4544.9,2.20026843]
[1755189485116,3.813,4545.0,4544.9,2.31066843]
[1755189485353,3.813,4545.0,4544.9,3.17246843]
[1755189485741,0.002,4545.0,4544.9,3.17246843]
[1755189487220,1e-08,4545.0,4544.9,6.17246843]
[1755189487520,1e-08,4545.0,4544.9,7.00974895]
[1755189488529,1e-08,4545.0,4544.9,6.89934895]
[1755189488728,1e-08,4545.0,4544.9,7.00974895]
[1755189488980,1e-08,4545.0,4544.9,7.55974895]
[1755189489446,3.73760001,4546.6,4546.5,2.19949411]
[1755189489647,3.807,4546.9,4546.7,2.19939736]
[1755189489830,3.807,4546.8,4546.7,2.19939736]
[1755189491169,3.807,4546.8,4546.6,2.19943488]
[1755189491387,3.807,4546.8,4546.7,2.19939736]
[1755189492291,4.2502,4546.8,4546.3,2.19958689]
[1755189492431,4.2502,4546.8,4546.2,0.1096]
[1755189492432,1.5292,4546.7,4546.2,0.1096]
[1755189492632,2.74959087,4546.3,4546.2,0.1096]
[1755189492831,1.5292,4546.3,4546.2,0.1096]
[1755189493038,0.55,4546.2,4545.2,2.20011882]
[1755189493252,0.55,4546.2,4545.4,2.20002166]
[1755189493253,0.55,4546.0,4545.4,2.20002166]
[1755189493444,0.1096,4545.5,4544.8,0.1104]
[1755189493639,3.805,4545.4,4545.3,2.2000748]
[1755189493844,0.1096,4545.5,4545.4,2.2000264]
[1755189494044,3.9146,4545.5,4545.4,2.2000264]
[1755189494567,3.9136,4545.5,4545.4,2.2000264]
[1755189495637,0.4432,4546.4,4545.4,2.2000264]
[1755189495638,0.1096,4546.1,4545.8,2.1997865]
[1755189495944,4.2462,4546.0,4545.5,2.19993696]
[1755189496134,0.1096,4545.8,4545.6,2.19992499]
[1755189496336,0.1096,4545.8,4545.7,2.1998812]
[1755189496588,0.4432,4547.4,4545.8,2.19983281]
[1755189496738,0.1096,4547.0,4546.0,3.0]
[1755189497074,0.1096,4547.0,4546.8,2.19934354]
[1755189497373,3.803,4547.1,4545.8,0.1096]
[1755189497374,0.9792,4546.9,4545.8,0.1096]
[1755189497587,0.1096,4546.4,4545.8,0.1096]
[1755189497916,3.803,4547.1,4545.0,3.298]
[1755189497917,0.1096,4546.1,4545.0,0.5638]
[1755189498050,3.802,4546.0,4545.2,0.1104]
[1755189498581,0.1096,4546.1,4546.0,2.19973603]
[1755189498874,0.1096,4546.1,4546.0,2.76353603]
[1755189499060,3.801,4546.2,4546.1,2.19968764]
[1755189499381,3.801,4546.5,4546.4,2.19954249]
[1755189499953,3.801,4546.5,4546.0,0.1096]
[1755189500157,3.801,4546.5,4544.5,1e-08]
[1755189500158,0.55,4546.3,4545.9,2.19973998]
[1755189500355,0.55,4546.3,4545.1,2.20016421]
[1755189500356,0.9932,4546.3,4545.8,2.19982895]
[1755189500550,0.55,4546.3,4545.9,2.19976932]
[1755189500755,0.4432,4546.2,4545.7,2.19984807]
[1755189501097,0.4432,4546.1,4545.0,0.001]
[1755189501240,0.9792,4546.1,4545.8,2.19979428]
[1755189501442,0.4485,4546.0,4545.1,2.20017161]
[1755189501698,0.55,4546.2,4545.5,2.19993937]
[1755189501975,0.4485,4546.0,4545.8,2.19982479]
[1755189502677,3.799,4545.9,4545.8,2.19982479]
[1755189502879,4.2475,4545.9,4545.0,0.001]
[1755189503119,0.4485,4546.5,4545.2,2.2001232]
[1755189503262,0.4485,4547.1,4545.3,1.04881232]
[1755189503461,3.798,4547.0,4546.5,2.19947485]
[1755189503667,0.9758,4546.9,4546.5,2.1994931]
[1755189503965,0.9758,4546.9,4546.3,2.19954377]
[1755189504168,0.4485,4546.8,4546.0,2.19972554]
[1755189504361,0.55,4546.7,4545.2,0.5307]
[1755189504581,0.55,4546.7,4545.9,2.19975056]
[1755189504784,3.798,4546.6,4545.9,2.19974993]
[1755189505004,2.19922479,4547.1,4545.3,3.0]
[1755189505005,3.798,4546.5,4545.3,2.4980748]
[1755189505176,0.55,4547.1,4546.5,2.19946573]
[1755189505376,0.55,4546.9,4545.6,0.5307]
[1755189505601,0.002,4547.3,4547.2,2.19915552]
[1755189505800,3.799,4547.3,4547.2,2.19915552]
[1755189506713,3.799,4547.3,4546.3,2.19955047]
[1755189506714,3.799,4547.3,4547.0,2.19921287]
[1755189507015,0.4485,4547.2,4546.0,0.5307]
[1755189507326,0.002,4547.3,4547.2,2.19915552]
[1755189507689,3.798,4547.3,4547.2,2.19915552]
[1755189508410,3.798,4547.3,4546.3,2.19959087]
[1755189508608,0.55,4547.2,4546.8,2.19933348]
[1755189508827,1.5258,4547.2,4546.6,2.19940932]
[1755189509003,0.53238,4547.1,4546.7,2.19939695]
[1755189509206,1.50818,4547.1,4546.5,2.19945314]
[1755189509532,1.50818,4547.1,4546.8,2.19934027]
[1755189509735,0.98088,4547.1,4546.9,2.19929568]
[1755189509939,0.002,4547.3,4547.2,2.19915552]
[1755189510122,0.002,4547.3,4546.5,0.1096]
[1755189510123,0.1096,4547.1,4546.5,0.1096]
[1755189510450,0.1096,4546.8,4546.4,2.19954056]
[1755189510615,0.1096,4546.8,4546.7,2.19939736]
[1755189510936,4.3521,4546.8,4546.1,0.1096]
[1755189511137,0.9985,4546.7,4546.0,0.001]
[1755189511296,0.1096,4546.1,4546.0,2.20073206]
[1755189511634,4.23,4547.2,4547.0,2.19924076]
[1755189511842,3.793,4547.1,4546.9,2.19929892]
[1755189512006,3.793,4547.1,4546.0,0.001]
[1755189512007,0.4485,4547.0,4546.0,0.001]
[1755189512209,0.5581,4547.0,4546.9,2.19930062]
[1755189512637,0.1096,4547.0,4546.9,2.19930062]
[1755189512975,5.16456,4547.0,4546.4,2.19954249]
[1755189513250,0.1096,4547.0,4546.9,2.19930062]
[1755189513414,0.1096,4547.0,4546.5,0.02199494]
[1755189513415,0.002,4547.3,4547.2,2.19915552]
[1755189513608,3.794,4547.3,4547.2,2.19915552]
[1755189513813,3.9036,4547.3,4547.2,2.19915552]
[1755189514345,3.794,4547.3,4547.2,2.19915552]
[1755189514543,3.794,4547.3,4547.2,3.57949279]
[1755189514762,0.002,4547.3,4547.2,3.57949279]
[1755189514969,1e-08,4547.3,4547.2,6.57949279]
[1755189515242,1e-08,4547.3,4547.2,5.76079279]
[1755189515744,1e-08,4547.3,4547.2,5.30875552]
[1755189515948,1e-08,4547.3,4547.2,6.13745552]
[1755189516718,0.002,4548.0,4547.4,3.0]
[1755189516919,0.002,4548.0,4547.9,2.19881703]
[1755189517354,0.002,4548.0,4547.9,2.30841703]
[1755189518281,0.002,4548.0,4547.9,2.19881703]
[1755189518470,0.4505,4548.0,4547.9,2.19881703]
[1755189518756,0.4505,4548.0,4547.7,0.1096]
[1755189518757,1.51165,4548.0,4547.6,2.19895734]
[1755189518922,0.1096,4547.7,4547.4,2.19902009]
[1755189519123,0.9758,4547.6,4546.0,0.001]
[1755189519323,0.1096,4547.2,4547.1,2.19920388]
[1755189519588,0.1096,4547.2,4546.5,0.1096]
[1755189519589,4.3461,4547.2,4547.0,2.1992459]
[1755189519884,0.4485,4547.1,4546.5,0.1096]
[1755189520025,0.4485,4547.6,4546.6,2.19944573]
[1755189520230,0.4485,4547.6,4546.0,0.001]
[1755189520231,0.1096,4547.4,4547.0,2.19922711]
[1755189520441,0.9758,4547.3,4546.8,2.19930071]
[1755189520785,0.1096,4547.0,4546.9,2.19930062]
[1755189520947,0.1096,4547.0,4546.0,0.001]
[1755189520948,1.0854,4547.0,4546.0,0.001]
[1755189521254,0.1096,4546.8,4546.4,2.19950455]
[1755189521460,3.787,4546.7,4546.5,2.19948091]
[1755189521657,0.9758,4547.1,4546.1,0.01]
[1755189521860,0.002,4548.0,4546.9,2.19930062]
[1755189521861,3.8956,4547.0,4546.9,2.19930062]
[1755189522078,3.8956,4547.0,4546.7,2.19935467]
[1755189522424,0.4485,4546.9,4546.4,0.1096]
[1755189522620,0.9758,4546.8,4546.5,2.19949411]
[1755189522844,3.8956,4547.0,4546.9,2.19930062]
[1755189523068,0.1096,4547.0,4546.9,2.19930062]
[1755189523272,3.786,4547.0,4546.9,2.19930062]
[1755189524312,0.55,4546.9,4545.5,0.001]
[1755189524587,0.55,4546.9,4546.1,0.01]
[1755189524793,0.1096,4546.2,4546.1,0.01]
[1755189524988,3.8936,4546.2,4546.1,0.01]
[1755189525375,3.8936,4546.2,4546.0,2.20072566]
[1755189525376,4.8694,4546.2,4546.0,0.001]
[1755189525576,0.4485,4546.1,4546.0,2.20073603]
[1755189525779,3.784,4546.1,4546.0,2.20073603]
[1755189526097,0.1096,4546.2,4546.1,2.19968764]
[1755189526260,3.8936,4546.2,4546.1,2.19968764]
[1755189526611,3.8936,4546.2,4546.0,0.001]
[1755189526612,0.55,4546.1,4546.0,0.001]
[1755189526895,1.5258,4546.1,4546.0,0.001]
[1755189528662,0.55,4546.1,4546.0,0.001]
[1755189528990,0.4485,4546.1,4546.0,0.001]
[1755189529204,0.1096,4546.2,4546.0,0.001]
[1755189529497,0.002,4547.5,4546.0,0.001]
[1755189529498,3.782,4546.3,4546.1,0.5307]
[1755189529703,3.782,4546.2,4546.1,0.5307]
[1755189529997,0.1096,4546.7,4546.6,2.19944573]
[1755189530678,0.002,4547.5,4546.0,0.1106]
[1755189530679,0.1096,4547.2,4546.9,2.19930062]
[1755189530866,4.2315,4547.0,4546.8,2.19930959]
[1755189531061,0.1096,4546.8,4546.2,0.1096]
[1755189531246,0.9758,4546.9,4546.1,2.19968764]
[1755189531442,0.1096,4546.4,4546.0,0.311]
[1755189531647,3.781,4546.3,4546.2,2.19963925]
[1755189531866,0.1116,4547.0,4546.9,2.19930062]
[1755189532386,3.782,4547.0,4546.9,2.19930062]
[1755189532583,3.782,4547.0,4546.9,2.65012769]
[1755189532785,3.782,4547.0,4546.9,2.19930062]
[1755189533290,3.782,4547.0,4546.9,2.50930062]
[1755189534016,8.011,4547.0,4546.9,2.50930062]
[1755189534197,3.781,4547.0,4546.9,3.12690062]
[1755189534511,3.781,4547.0,4546.9,2.61890062]
[1755189534867,3.781,4547.0,4546.9,2.30890062]
[1755189535813,0.002,4547.5,4547.4,2.1990588]
[1755189535988,3.78,4547.5,4547.4,2.3086588]
[1755189537003,3.779,4547.5,4547.4,2.3086588]
[1755189537511,3.779,4547.5,4547.4,2.4386588]
[1755189537512,0.002,4547.5,4547.4,2.4386588]
[1755189537816,3.779,4547.5,4547.4,2.4386588]
[1755189538033,3.779,4547.5,4547.4,3.20243767]
[1755189538230,0.002,4547.5,4547.4,3.71043767]
[1755189538424,0.002,4547.5,4547.4,7.00843767]
[1755189538727,1e-08,4547.5,4547.4,7.00843767]
[1755189539473,1e-08,4548.0,4547.9,2.19881703]
[1755189539677,0.002,4548.1,4547.9,2.19881703]
[1755189539678,1e-08,4548.1,4548.0,5.19876868]
[1755189540710,1e-08,4548.1,4548.0,5.32876868]
[1755189541106,1e-08,4548.1,4548.0,2.32876868]
[1755189541480,3.77400001,4548.1,4548.0,2.32876868]
[1755189541822,1e-08,4548.1,4548.0,2.32876868]
[1755189542121,1e-08,4548.1,4548.0,3.81837594]
[1755189542628,1e-08,4548.1,4548.0,3.92797594]
[1755189542840,1e-08,4548.1,4548.0,3.62997594]
[1755189543010,1e-08,4548.1,4548.0,3.12197594]
[1755189543177,1e-08,4548.1,4548.0,3.01237594]
[1755189543377,1e-08,4548.1,4548.0,6.62997594]
[1755189543581,1e-08,4548.1,4548.0,6.92797594]
[1755189543780,3.772,4549.0,4548.9,2.19833366]
[1755189544079,5.276,4549.9,4549.6,2.19799542]
[1755189544080,3.772,4549.7,4549.6,2.19799542]
[1755189544632,3.772,4549.7,4549.2,0.1096]
[1755189544633,4.7531,4549.7,4549.2,0.1096]
[1755189544927,0.1096,4549.5,4549.4,2.19809205]
[1755189545133,0.4489,4549.6,4549.5,2.19804374]
[1755189545310,5.276,4549.9,4549.8,2.1978988]
[1755189545511,9.047,4549.9,4549.8,2.1978988]
[1755189545721,2.19727184,4551.1,4549.8,2.1978988]
[1755189545722,5.274,4552.0,4549.8,2.1978988]
[1755189546008,0.1096,4550.4,4549.8,0.1096]
[1755189546328,0.1096,4550.4,4549.0,4.069]
[1755189546329,4.7511,4550.3,4548.6,2.19847865]
[1755189546507,0.1096,4549.6,4549.0,0.1096]
[1755189546716,0.1096,4549.6,4549.5,2.19804374]
[1755189547077,0.1096,4549.6,4549.5,2.32804374]
[1755189547277,0.4489,4550.2,4549.5,2.32804374]
[1755189547278,3.77,4549.8,4549.7,2.19794711]
[1755189547483,0.1096,4550.5,4550.4,2.197609]
[1755189547679,3.8786,4550.5,4550.4,2.197609]
[1755189547923,4.71556,4550.5,4550.4,2.197609]
[1755189548424,5.24776,4550.5,4549.7,0.1096]
[1755189548578,5.24776,4550.5,4550.3,2.19765436]
[1755189548777,0.9811,4550.4,4550.3,2.19765436]
[1755189549584,0.4489,4550.4,4550.3,2.19765436]
[1755189549899,3.8786,4550.5,4550.4,2.197609]
[1755189550218,4.3275,4550.5,4550.4,2.197609]
[1755189550433,0.54255,4550.5,4550.4,2.197609]
[1755189550731,3.8766,4550.5,4550.4,2.197609]
[1755189550913,0.002,4550.6,4550.5,2.1975607]
[1755189551315,0.1096,4551.5,4551.4,2.19712615]
[1755189551492,0.5585,4551.5,4551.2,2.19717706]
[1755189551690,0.9811,4551.4,4550.8,0.1096]
[1755189551926,0.4489,4551.4,4551.3,2.19717443]
[1755189552134,4.2149,4551.4,4551.3,2.19717443]
[1755189552314,3.766,4551.4,4551.3,2.19717443]
[1755189552635,3.766,4551.4,4550.9,2.19733133]
[1755189552636,4.2149,4551.4,4550.9,2.19733133]
[1755189552929,3.766,4551.4,4550.8,0.1096]
[1755189553225,3.766,4551.4,4551.1,2.19724593]
[1755189553385,3.766,4551.4,4551.1,2.19724573]
[1755189553580,0.1096,4551.5,4551.4,2.19712615]
[1755189555779,0.5585,4551.5,4551.0,2.19727681]
[1755189555998,0.4489,4551.4,4551.1,0.43]
[1755189556298,0.1096,4551.5,4551.2,2.19722271]
[1755189556640,0.1096,4551.5,4551.4,2.19712615]
[1755189556835,3.8726,4551.5,4551.4,2.19712615]
[1755189557339,4.3215,4551.5,4551.4,2.19712615]
[1755189557684,3.8726,4551.5,4551.4,2.19712615]
[1755189558146,0.1096,4551.5,4551.4,2.19712615]
[1755189559242,1e-08,4551.5,4551.4,5.70512615]
[1755189559383,1e-08,4551.5,4551.4,6.97776023]
[1755189559828,1e-08,4551.5,4551.4,6.46976023]
[1755189560035,1e-08,4551.5,4551.4,5.30672615]
[1755189560214,1e-08,4551.5,4551.4,2.19712615]
[1755189560718,1e-08,4551.5,4551.4,2.72672615]
[1755189561421,0.00200001,4551.5,4551.4,2.72672615]
[1755189562415,0.00200001,4551.5,4551.4,10.06414815]
[1755189562821,0.43640001,4551.5,4551.4,9.95454815]
[1755189563549,0.00200001,4551.5,4551.4,9.95454815]
[1755189564144,1e-08,4551.5,4551.4,14.98218443]
[1755189564348,1e-08,4551.5,4551.4,15.09178443]
[1755189564545,1e-08,4551.5,4551.4,18.84778443]
[1755189564746,1e-08,4551.5,4551.4,14.29028443]
[1755189564953,1e-08,4551.5,4551.4,13.06414815]
[1755189565449,1e-08,4551.5,4551.4,10.06414815]
[1755189566213,1e-08,4551.5,4551.4,9.64414815]
[1755189567197,0.43440001,4551.5,4551.4,9.53454815]
[1755189567650,1e-08,4551.5,4551.4,9.53454815]
[1755189567832,0.43440001,4551.5,4551.4,9.53454815]
[1755189568202,0.97530001,4551.5,4551.4,7.337422]
[1755189569062,0.97530001,4551.5,4551.4,9.53454815]
[1755189569063,1e-08,4551.5,4551.4,9.53454815]
[1755189569359,1e-08,4551.5,4551.4,10.71868262]
[1755189569570,1e-08,4551.5,4551.4,9.53454815]
[1755189569768,1e-08,4551.5,4551.4,9.55454815]
[1755189569968,4.23,4551.9,4551.8,2.19693308]
[1755189571282,4.6644,4551.9,4551.8,2.21693308]
[1755189571477,5.2053,4551.9,4551.8,2.21693308]
[1755189571618,5.2053,4551.9,4551.8,0.02]
[1755189571825,5.2053,4551.9,4551.8,2.21693308]
[1755189572024,5.2053,4551.9,4551.8,0.02]
[1755189572221,5.2053,4551.9,4551.8,2.21693308]
[1755189572465,4.6644,4551.9,4551.8,2.21693308]
[1755189572670,4.23,4551.9,4551.8,2.21693308]
[1755189572873,4.23,4551.9,4551.8,2.19693308]
[1755189573424,0.002,4552.0,4551.9,2.19688481]
[1755189573625,1e-08,4552.0,4551.9,6.34056803]
[1755189573870,1e-08,4552.0,4551.9,7.26406803]
[1755189574576,1e-08,4552.0,4551.9,7.5635636]
[1755189574786,1e-08,4552.0,4551.9,7.8615636]
[1755189574923,1e-08,4552.0,4551.9,11.3125636]
[1755189575126,1e-08,4552.0,4551.9,11.01306803]
[1755189575477,1e-08,4552.0,4551.9,10.50956803]
[1755189575623,1e-08,4552.0,4551.9,6.76056803]
[1755189575832,1e-08,4552.0,4551.9,11.01306803]
[1755189576879,1e-08,4552.0,4551.9,10.50956803]
[1755189577058,0.002,4552.5,4552.4,2.19664352]
[1755189577269,0.4364,4552.5,4552.4,2.19664352]
[1755189577583,1.0869,4552.5,4552.4,2.19664352]
[1755189577943,0.002,4552.5,4552.4,2.19664352]
[1755189579132,1e-08,4552.5,4552.4,9.87723916]
[1755189579875,1e-08,4552.5,4552.4,6.13123916]
[1755189580081,1e-08,4552.5,4552.4,9.87623916]
[1755189580257,1e-08,4552.5,4552.4,6.13123916]
[1755189580625,1e-08,4552.5,4552.4,9.87623916]
[1755189581059,1e-08,4552.5,4552.4,10.31623916]
[1755189581387,1e-08,4552.5,4552.4,10.81973916]
[1755189581735,0.4344,4553.6,4552.5,5.19659527]
[1755189581944,0.4344,4553.6,4553.5,2.19611288]
[1755189582329,0.544,4553.6,4553.5,2.19611288]
[1755189584297,0.1096,4553.6,4553.5,2.19611288]
[1755189584516,0.544,4554.1,4553.7,2.19601642]
[1755189584991,0.544,4554.1,4554.0,2.19587176]
[1755189585286,0.544,4554.1,4552.8,2.69992943]
[1755189585287,0.55,4554.0,4552.5,3.55]
[1755189585598,0.1096,4552.6,4552.5,0.55]
[1755189585886,1.6349,4552.6,4552.5,0.55]
[1755189586475,1.0849,4552.6,4552.5,2.74659527]
[1755189586685,0.4344,4553.0,4552.5,0.57196595]
[1755189586982,0.1096,4553.3,4552.6,0.1096]
[1755189587157,0.1096,4553.3,4553.2,2.19625757]
[1755189587334,0.544,4553.3,4553.2,2.19625757]
[1755189587532,0.1096,4553.3,4553.2,2.19625757]
[1755189588322,0.1096,4553.3,4553.0,2.19635049]
[1755189588323,0.1096,4553.6,4553.5,2.19611288]
[1755189588574,3.739,4554.2,4553.4,2.1961239]
[1755189588784,3.739,4554.2,4553.2,0.1096]
[1755189588785,0.4344,4553.6,4553.2,2.30585513]
[1755189588933,0.5409,4553.5,4553.2,0.1096]
[1755189589132,0.5409,4553.4,4553.2,2.30585083]
[1755189589468,3.738,4554.1,4553.2,2.19625757]
[1755189589668,0.1096,4553.9,4553.2,0.1096]
[1755189590044,0.1096,4553.9,4553.8,2.1959682]
[1755189590444,4.1724,4554.3,4554.2,2.19577532]
[1755189590671,4.58964,4554.3,4554.2,2.19577532]
[1755189590868,4.1724,4554.3,4554.2,2.19577532]
[1755189591076,3.8476,4554.3,4554.2,2.19577532]
[1755189591279,0.1096,4554.6,4554.5,2.19563069]
[1755189591954,0.5554,4554.6,4554.5,2.19563069]
[1755189592871,0.5054,4554.6,4554.5,2.19563069]
[1755189593070,0.5054,4554.6,4554.0,0.1096]
[1755189593273,0.5054,4554.6,4553.0,3.735]
[1755189593274,0.55,4554.5,4553.0,3.735]
[1755189593472,0.1096,4554.1,4554.0,2.19587176]
[1755189593671,0.5554,4554.1,4554.0,2.19587176]
[1755189594178,0.1096,4554.1,4554.0,2.19587176]
[1755189594345,3.737,4554.8,4554.0,2.19587176]
[1755189594346,3.737,4554.8,4554.6,2.19555423]
[1755189594677,0.5554,4554.7,4554.6,2.19555423]
[1755189594900,0.1096,4554.7,4554.6,2.19555423]
[1755189595053,0.01028983,4555.0,4554.9,2.19543788]
[1755189595574,0.01028983,4555.0,4554.9,2.30503788]
[1755189597545,0.01028983,4555.0,4554.9,5.92743788]
[1755189598481,0.01028983,4555.0,4554.9,2.19543788]
[1755189599897,0.01028983,4555.0,4554.9,5.92543788]
[1755189600197,0.002,4555.1,4555.0,5.19538968]
[1755189600684,0.002,4555.1,4555.0,2.19538968]
[1755189600888,0.4478,4555.1,4555.0,2.19538968]
[1755189601088,0.002,4555.1,4555.0,2.19538968]
[1755189604210,0.55,4556.3,4556.0,24.70264088]
[1755189604504,0.55,4556.1,4556.0,26.89754869]
[1755189604703,0.55,4556.1,4556.0,24.70264088]
[1755189606328,1.5003,4556.1,4556.0,24.70264088]
[1755189606715,1.5003,4556.1,4556.0,29.70264088]
[1755189606911,6.69515963,4556.1,4556.0,28.63715803]
[1755189607593,6.80475963,4556.1,4556.0,28.63715803]
[1755189608498,10.52875963,4556.1,4556.0,28.63715803]
[1755189608826,12.84375963,4556.1,4556.0,28.63715803]
[1755189609421,10.52875963,4556.1,4556.0,28.63715803]
[1755189610180,12.84375963,4556.1,4556.0,28.63715803]
[1755189611009,12.84375963,4556.1,4553.5,2.1960663]
[1755189611010,0.55,4555.8,4553.5,2.1960663]
[1755189611195,0.55,4555.8,4552.8,0.5149]
[1755189611196,0.55,4554.5,4553.2,0.4349]
[1755189611512,0.1096,4554.1,4553.5,0.5139]
[1755189611712,0.1096,4554.1,4554.0,2.19584936]
[1755189611914,4.8896,4554.1,4554.0,2.19584936]
[1755189612211,4.3396,4554.1,4554.0,2.19587176]
[1755189612415,0.1096,4554.1,4554.0,2.70977176]
[1755189614136,0.1096,4554.1,4554.0,3.14467176]
[1755189614283,0.4458,4555.3,4554.0,3.14467176]
[1755189614284,0.4458,4556.3,4554.0,4.48286137]
[1755189614489,0.1096,4555.4,4554.6,0.1096]
[1755189614823,0.1096,4555.4,4555.3,2.19524509]
[1755189615321,0.0596,4555.4,4554.7,0.9488]
[1755189615530,0.0596,4555.4,4555.2,2.1952906]
[1755189615823,0.0596,4555.4,4554.6,3.8286]
[1755189615824,0.0596,4555.4,4555.1,2.19533048]
[1755189616022,0.0596,4555.4,4554.8,2.19547024]
[1755189616226,0.0596,4555.4,4554.7,2.19553428]
[1755189616427,0.0596,4555.4,4554.6,0.1096]
[1755189616428,0.0596,4555.4,4554.6,4.3425]
[1755189616733,0.0596,4555.4,4554.8,0.9488]
[1755189616916,0.0596,4555.4,4555.3,2.19524509]
[1755189617690,0.0596,4555.4,4555.3,2.70914509]
[1755189617891,0.0596,4555.4,4555.3,3.14404509]
[1755189618536,0.002,4556.6,4555.3,3.14404509]
[1755189618537,0.002,4556.6,4555.5,2.19512855]
[1755189618877,0.002,4556.6,4556.5,2.19466695]
[1755189619427,0.1116,4556.6,4556.5,2.19466695]
[1755189620530,0.1116,4556.6,4556.3,2.19471518]
[1755189620891,0.9958,4556.5,4555.7,0.1096]
[1755189621167,0.55,4556.3,4554.9,3.715]